Workbook

Sheet S4G_Homework 1
C3: Name :
C6: Teacher :
B9: General Official Homework 1 Created by Mr Lafferty St. Ninian's High School
D11: This homework covers topics | AC11: Score
D13: Basic Number Operations | T13: Algebraic Equations | AF13: 24
D15: Simple Percentage & Money | T15: Linear Patterns
D17: Scientific Notation | T17: Pythagoras Theorem
D20: Teacher Comments :
D28: Pupil's Comment :
B36: 1. | C36: Carry out the following instructions. | O36: ( NON - CALCULATOR QUESTION )
B38: (a) | D38: =ROUND(RAND()*(20-10)+10,0) -> 12 | F38: - | G38: =ROUND(RAND()*(6-2)+2,1) -> 3.8 | I38: + | J38: =ROUND(RAND()*(6-2)+2,2) -> 3.52 | L38: Working : | AJ38: =I40 -> 11.72
C40: Answer : | I40: =D38-G38+J38 -> 11.72
B42: (b) | D42: =ROUND(RAND()*(50-30)+30,1) -> 31.1 | G42: x | H42: =ROUND(RAND()*(9-6)+6,0) -> 6 | L42: Working : | AJ42: =I44 -> 186.6
C44: Answer : | I44: =D42*H42 -> 186.6
B46: (c) | D46: =ROUND(RAND()*(8-2)+2,1)*H46 -> 4400 | G46: ÷ | H46: =ROUND(RAND()*(9-3)+3,0)*100 -> 800 | L46: Working : | AJ46: =I48 -> 5.5
C48: Answer : | I48: =D46/H46 -> 5.5
B50: (d) | E50: =ROUND(RAND()*(8-2)+2,0) -> 3 | F50: of | H50: =E51*E50 -> 12 | L50: Working : | AJ50: =I53 -> 9
E51: =E50+1 -> 4
C53: Answer : | I53: =H50/E51*E50 -> 9 | AC53: ( 5 marks )
B56: 2. | C56: The Adams Family want to buy wine for a family party.
C57: They see this sign in a shop window.
E59: Wine Special
F60: =ROUND(RAND()*(30-10)+10,0)+0.99 -> 11.99 | I60: per bottle
E62: =ROUND(RAND()*(5-1)+1,0)*5 -> 20 | G62: % discount when you purchase | P62: =ROUND(RAND()*(9-5)+5,0) -> 7 | Q62: or more.
C65: Calculate the cost of | J65: =P62 -> 7 | K65: bottles to the nearest penny. | T65: Answer : | Z65: =ROUND(P62*F60*(100-E62)/100,2) -> 67.14 | AC65: ( 4 marks ) | AJ65: =Z65 -> 67.14
C67: Working :
B76: 3. | C76: A planet's temperature is | L76: =ROUND(RAND()*((-5)-(-20))+(-20),0) -> -8 | N76: oC | O76: . The earth has temperature of | Z76: =ROUND(RAND()*((30)-(8))+(8),0) -> 25 | AB76: oC. | AC76: ( 2 marks ) | AK76: =L76 -> -8
AK77: =Z76 -> 25
C78: What is the difference in temperature | O78: Working :
C79: between the two planets ? | AJ79: =Z76-L76 -> 33
B80: Answer : | I80: oC
B83: 4. | C83: Solve algebraically the equation. | O83: Working :
C85: =ROUND(RAND()*(10-(5))+(5),0) -> 8 | D85: x | E85: + | F85: =ROUND(RAND()*(30-(5))+(5),0) -> 30 | G85: = | H85: =ROUND(RAND()*(4-(2))+(2),0) -> 3 | I85: x | J85: + | K85: =C86*C85+F85-H85*C86 -> 65
C86: =ROUND(RAND()*(9-(1))+(1),0) -> 7
B87: Answer :
AC89: ( 3 marks )
B92: 5. | C92: (a) Complete the following table | AP92: =ROUND(RAND()*(1-0)+0,0) -> 0
AL93: C | AM93: = | AN93: =ROUND(RAND()*(9-5)+5,0) -> 8 | AO93: T | AP93: =IF(AP92=0,"+","-") -> + | AQ93: =ROUND(RAND()*(4-1)+1,0) -> 3
B94: Number of tables ( T) | J94: 1 | K94: 2 | L94: 3 | M94: 4 | N94: 5 | Q94: =ROUND(RAND()*(15-9)+9,0) -> 10
B95: Number of chairs (C) | J95: =IF($AP$93="+",J94*$AN$93+$AQ$93,J94*$AN$93-$AQ$93) -> 11 | L95: =IF($AP$93="+",L94*$AN$93+$AQ$93,L94*$AN$93-$AQ$93) -> 27 | M95: =IF($AP$93="+",M94*$AN$93+$AQ$93,M94*$AN$93-$AQ$93) -> 35 | AL95: C | AM95: = | AN95: =IF($AP$93="+",Q94*AN93+AQ93,Q94*AN93-AQ93) -> 83
AB96: Answer :
C97: (b) Write down a formula connecting the number of chairs and tables. | Z97: C =
AM98: 2 | AN98: =IF($AP$93="+",K94*$AN$93+$AQ$93,K94*$AN$93-$AQ$93) -> 19
D99: Working : | AM99: 5 | AN99: =IF($AP$93="+",N94*$AN$93+$AQ$93,N94*$AN$93-$AQ$93) -> 43
AM100: 11 | AN100: =AN95 -> 83
AL101: C | AM101: = | AN101: =IF($AP$93="+",AO101*$AN$93+$AQ$93,AO101*$AN$93-$AQ$93) -> 235 | AO101: =ROUND(RAND()*(30-19)+19,0) -> 29
C102: (c) How many tables are required for | O102: =AN101 -> 235 | Q102: chairs ? | W102: Answer T = | AN102: =AO101 -> 29
D104: Working :
AC112: ( 6 marks )
B115: 6. | C115: The diagram below shows the shape of the Langrell's garden.
C116: Andrew decides he is going to plant a hedge along side AB. | V116: Working :
K118: =I124+ROUND(RAND()*(6-3)+3,0) -> 13 | M118: cm | R118: B | AN118: =ROUND(SQRT((C121*C121)+(K118-I124)*(K118-I124)),1) -> 8.5
C121: =ROUND(RAND()*(9-6)+6,0) -> 6 | E121: cm | I121: (NOT TO SCALE)
I124: =C121+ROUND(RAND()*(3-1)+1,0) -> 7 | K124: cm | O124: A
E126: Calculate the length of AB to 1 decimal place.
S127: Answer AB = | AA127: cm | AN127: =AN118 -> 8.5
AC128: ( 4 marks )
AB130: Total marks 24

Sheet S4G_Homework 2
C3: Name :
C6: Teacher :
B9: General Official Homework 2 Created by Mr Lafferty St. Ninian's High School
D11: This homework covers topics | AC11: Score
D13: Basic Number Operations | T13: Algebraic Equations | AF13: 23
D15: Simple Percentage & Money | T15: Linear Patterns
D17: Negative Numbers | T17: Trigonometry
D20: Teacher Comments :
D28: Pupil's Comment :
B36: 1. | C36: Carry out the following instructions. | O36: ( NON - CALCULATOR QUESTION )
B38: (a) | D38: =ROUND(RAND()*(950-730)+730,1) -> 784.8 | G38: - | H38: =ROUND(RAND()*(550-330)+330,1) -> 394.4 | L38: Working : | AJ38: =I40 -> 390.4
C40: Answer | I40: =D38-H38 -> 390.4
B42: (b) | D42: =ROUND(RAND()*(50-15)+15,1) -> 17.3 | G42: x | H42: =ROUND(RAND()*(9-3)+3,0)*10 -> 70 | L42: Working : | AJ42: =I44 -> 1211
C44: Answer | I44: =D42*H42 -> 1211
B46: (c) | D46: =ROUND(RAND()*(98-32)+32,1)*H46 -> 561.6 | G46: ÷ | H46: =ROUND(RAND()*(9-4)+4,0) -> 8 | L46: Working : | AJ46: =I48 -> 70.2
C48: Answer : | I48: =D46/H46 -> 70.2
B50: (d) | D50: =ROUND(RAND()*(9-2)+2,0)*10 -> 90 | F50: % of | H50: =ROUND(RAND()*(9-2)+2,1)*10 -> 22 | L50: Working : | AJ50: =I53 -> 19.8
C53: Answer : | I53: =H50*D50/100 -> 19.8 | AC53: ( 5 marks )
B56: 2. | C56: Maura sees a bracelet costing £ | M56: =ROUND(RAND()*(40-14)+14,0)*5 -> 85 | O56: in a jeweler's window.
C58: The jeweler offers Maura a | L58: =ROUND(RAND()*(4-1)+1,0)*5 -> 10 | M58: % discount.
C60: Maura decides to buy the bracelet.
C63: How much does she pay ? | M63: ( NON - CALCULATOR )
T65: Answer | Z65: =M56-L58/100*M56 -> 76.5 | AC65: ( 3 marks ) | AJ65: =Z65 -> 76.5
C67: Working :
B76: 3. | C76: In an experiment Georgia measures the temperature of two liquids. | AC76: ( 2 marks )
C77: Liquid one's temperture | K77: =ROUND(RAND()*(-6-(-25))+(-25),0) -> -21 | L77: oC
C78: Liquid two's temperature | K78: =ROUND(RAND()*(18-(-5))+(-5),0) -> 0 | L78: oC | O78: Working :
AJ79: =I80 -> 21
B80: Answer : | I80: =K78-K77 -> 21
B83: 4. | C83: Solve algebraically the equation. | O83: Working :
F85: =H87*H85-K85 -> 13 | G85: = | H85: =ROUND(RAND()*(9-(4))+(4),0) -> 5 | I85: x | J85: - | K85: =ROUND(RAND()*(10-(6))+(6),0) -> 7
C86: =ROUND(RAND()*(9-(1))+(1),0) -> 8
B87: Answer : | H87: =ROUND(RAND()*(9-2)+(2),0) -> 4 | AN87: =H87 -> 4
AC89: ( 3 marks )
B92: 5. | C92: (a) Complete the following table | AP92: =ROUND(RAND()*(1-0)+0,0) -> 1
AL93: W | AM93: = | AN93: =ROUND(RAND()*(9-5)+5,0) -> 8 | AO93: C | AP93: =IF(AP92=0,"+","-") -> - | AQ93: =ROUND(RAND()*(4-1)+1,0) -> 3
B94: No. of colour tiles (C) | J94: 1 | K94: 2 | L94: 3 | M94: 4 | N94: 5 | Q94: =ROUND(RAND()*(15-9)+9,0) -> 10
B95: No. of white tiles (W) | J95: =IF($AP$93="+",J94*$AN$93+$AQ$93,J94*$AN$93-$AQ$93) -> 5 | L95: =IF($AP$93="+",L94*$AN$93+$AQ$93,L94*$AN$93-$AQ$93) -> 21 | M95: =IF($AP$93="+",M94*$AN$93+$AQ$93,M94*$AN$93-$AQ$93) -> 29 | AL95: C | AM95: = | AN95: =IF($AP$93="+",Q94*AN93+AQ93,Q94*AN93-AQ93) -> 77
AB96: Answer :
C97: (b) Write down a formula connecting the number of white and colour tiles. | Z97: W =
AM98: 2 | AN98: =IF($AP$93="+",K94*$AN$93+$AQ$93,K94*$AN$93-$AQ$93) -> 13
D99: Working : | AM99: 5 | AN99: =IF($AP$93="+",N94*$AN$93+$AQ$93,N94*$AN$93-$AQ$93) -> 37
AM100: 11 | AN100: =AN95 -> 77
AL101: C | AM101: = | AN101: =IF($AP$93="+",AO101*$AN$93+$AQ$93,AO101*$AN$93-$AQ$93) -> 205 | AO101: =ROUND(RAND()*(30-19)+19,0) -> 26
C102: (c) How many colour tiles are required for | P102: =AN101 -> 205 | R102: white tiles ? | W102: Answer C = | AN102: =AO101 -> 26
D104: Working :
AC112: ( 6 marks )
B115: 6. | C115: The shaded part of a garden light is triangular.
V116: Working :
AN118: =ROUND(SQRT((C121*C121)+(K118-I124)*(K118-I124)),1) -> 0
F119: =ROUND(RAND()*(40-15)+15,0) -> 32 | H119: cm
G122: =ROUND(RAND()*(60-45)+45,0) -> 58 | I122: o
H123: x | I123: cm
E126: Calculate the value of x to 1 decimal place.
S127: Answer x = | AA127: cm | AN127: =ROUND(F119*COS(G122*PI()/180),1) -> 17
AC128: ( 4 marks )
AB130: Total marks 23

Sheet S4G_Homework 3
C3: Name :
C6: Teacher :
B9: General Official Homework 3 Created by Mr Lafferty St. Ninian's High School
D11: This homework covers topics | AC11: Score
D13: Basic Number Operations | T13: Algebraic Brackets | AF13: 20
D15: Simple Percentage & Money | T15: Area
D17: Negative Numbers | T17: Pythagoras Theorem
D20: Teacher Comments :
D28: Pupil's Comment :
B36: 1. | C36: Carry out the following instructions. | O36: ( NON - CALCULATOR QUESTION )
B38: (a) | D38: =ROUND(RAND()*(950-730)+730,1) -> 769.3 | G38: - | H38: =ROUND(RAND()*(550-330)+330,1) -> 415.2 | L38: Working : | AJ38: =I40 -> 354.1
C40: Answer | I40: =D38-H38 -> 354.1
B42: (b) | D42: =ROUND(RAND()*(50-15)+15,1) -> 31.5 | G42: x | H42: =ROUND(RAND()*(9-3)+3,0)*10 -> 60 | L42: Working : | AJ42: =I44 -> 1890
C44: Answer | I44: =D42*H42 -> 1890
B46: (c) | D46: =ROUND(RAND()*(98-32)+32,1)*H46 -> 347.9 | G46: ÷ | H46: =ROUND(RAND()*(9-4)+4,0) -> 7 | L46: Working : | AJ46: =I48 -> 49.7
C48: Answer : | I48: =D46/H46 -> 49.7
B50: (d) | D50: =ROUND(RAND()*(9-1)+1,0)*5 -> 35 | F50: % of | H50: =ROUND(RAND()*(9-2)+2,1)*10 -> 56 | L50: Working : | AJ50: =I53 -> 19.6
C53: Answer : | I53: =H50*D50/100 -> 19.6 | AC53: ( 5 marks )
B56: 2. | C56: Caitlin travels between Glasgow and Edinburgh. | AK56: =ROUND(RAND()*(19-13)+13,1) -> 14.9
C58: She buys a monthly TravelPass which costs | Q58: =AK61 -> 261.8 | AK58: =AK62*AK56 -> 298
C60: A daily return ticket would cost | M60: =AK56 -> 14.9 | AK60: =ROUND(RAND()*(25-12.5)+12.5,1)*2 -> 36.2
AK61: =AK58-AK60 -> 261.8
C62: Last month Caitlin made | K62: =AK62 -> 20 | L62: return journeys. | AK62: =ROUND(RAND()*(13-6)+6,0)*2 -> 20
C64: How much did she save by buying the TravelPass ?
T65: Answer | Z65: =AK60 -> 36.2 | AC65: ( 3 marks ) | AK65: =AK60 -> 36.2
C67: Working :
B76: 3. | C76: What is the difference in height between Ben Nevis and the bottom of Loch Ness. | AC76: ( 2 marks )
C77: Ben Nevis is | G77: =AK78 -> 1318 | I77: m above sea level
C78: Loch Ness | G78: =AK79 -> 208 | I78: m below sea level | O78: Working : | AK78: =ROUND(RAND()*(1400-1300)+1300,0) -> 1318
AK79: =ROUND(RAND()*(240-182)+182,0) -> 208
B80: Answer : | I80: m | J80: =AK78+AK79 -> 1526 | AK80: =J80 -> 1526
B83: 4. | C83: Simplify | G83: =ROUND(RAND()*((-2)-(-9))+(-9),0) -> -3 | H83: ( | I83: =ROUND(RAND()*(9-(2))+(2),0) -> 8 | J83: =CHAR(RAND()*(122-97)+97) -> o | K83: - | L83: =ROUND(RAND()*(9-(2))+(2),0) -> 4 | M83: ) | O83: Working :
D85: Answer | AL85: =G83*I83 -> -24 | AM85: =J83 -> o | AN85: + | AO85: =-G83*L83 -> 12
C86: =ROUND(RAND()*(9-(1))+(1),0) -> 6
AC89: ( 3 marks )
B92: 5. | C92: A semi-circular window in the school assembly hall is made from three | AP92: =ROUND(RAND()*(1-0)+0,0) -> 1
C93: identical panes of glass.
C94: During a recent storm one pane of glass was damaged.
C99: The semi-circle has a radius of | M99: =AK99 -> 35 | O99: centimetres. | AK99: =ROUND(RAND()*(19-7)+7,0)*5 -> 35
X100: =AK99 -> 35 | Z100: cm
C101: Calculate the area of the damaged pane of glass. | R101: ( to 1 decimal place )
Z102: Answer : | AF102: cm2 | AK102: =ROUND(1/6*PI()*M99*M99,1) -> 641.4
D104: Working :
AC112: ( 3 marks )
B115: 6. | C115: A steel plate in the shape of an isosceles triangle is used to strengthen a bridge.
V116: Working :
AN118: =ROUND(SQRT((C121*C121)+(K118-I124)*(K118-I124)),1) -> 0
C119: The dimensions of the isosceles triangle are shown below.
K120: =ROUND(RAND()*(4-2)+2,1) -> 2.6 | L120: m
L122: h
H123: =K120+ROUND(RAND()*(2-0.8)+0.8,1) -> 4.5 | J123: m | M123: =H123 -> 4.5 | O123: m
C126: Calculate the height of the steel plate to 1 decimal place.
R127: Answer h = | AA127: m | AN127: =ROUND(SQRT(H123*H123-K120*K120),1) -> 3.7
AC128: ( 4 marks )
AB130: Total marks 20

Sheet S4G_Homework 4
C3: Name :
C6: Teacher :
B9: General Official Homework 4 Created by Mr Lafferty St. Ninian's High School
D11: This homework covers topics | AC11: Score
D13: Basic Number Operations | T13: Algebraic Brackets | AF13: 20
D15: Distance Speed Time | T15: Mean from Frequency Table
D17: Negative Numbers | T17: Percentages & Money
D20: Teacher Comments :
D28: Pupil's Comment :
B36: 1. | C36: Carry out the following instructions. | O36: ( NON - CALCULATOR QUESTION )
B38: (a) | D38: =ROUND(RAND()*(950-730)+730,1) -> 765.5 | G38: - | H38: =ROUND(RAND()*(550-330)+330,1) -> 373 | L38: Working : | AJ38: =I40 -> 392.5
C40: Answer | I40: =D38-H38 -> 392.5
B42: (b) | D42: =ROUND(RAND()*(50-15)+15,1) -> 31.4 | G42: x | H42: =ROUND(RAND()*(9-3)+3,0)*10 -> 60 | L42: Working : | AJ42: =I44 -> 1884
C44: Answer | I44: =D42*H42 -> 1884
B46: (c) | D46: =ROUND(RAND()*(98-32)+32,1)*H46 -> 317.6 | G46: ÷ | H46: =ROUND(RAND()*(9-4)+4,0) -> 8 | L46: Working : | AJ46: =I48 -> 39.7
C48: Answer : | I48: =D46/H46 -> 39.7
B50: (d) | D50: =ROUND(RAND()*(9-2)+2,0)*10 -> 70 | F50: % of | H50: =ROUND(RAND()*(9-2)+2,1)*10 -> 26 | L50: Working : | AJ50: =I53 -> 18.2
C53: Answer : | I53: =H50*D50/100 -> 18.2 | AC53: ( 5 marks )
B56: 2. | C56: Michael drives from Dumfries to Manchester. | AJ56: =ROUND(RAND()*(9-2)+2,0)*6 -> 48
AJ57: =ROUND(RAND()*(39-28)+18,0) -> 24
C58: A | D58: =AJ58 -> 19.2 | F58: mile part of his journey is affected by roadworks. | AJ58: =AJ56*AJ57/60 -> 19.2
C60: It takes him | G60: =AJ56 -> 48 | I60: minutes to drive this part of his journey.
C62: Calculate his average speed for this part of his journey.
C64: Give your answer in miles per hour.
T65: Answer | Z65: =AJ57 -> 24 | AC65: ( 3 marks ) | AJ65: =Z65 -> 24
C67: Working :
B76: 3. | C76: In July the average temperature in Anchorage, Alaska is | T76: =ROUND(RAND()*(15-7)+7,0) -> 8 | V76: oC | AC76: ( 2 marks )
C77: By January the average temperature has fallen by | R77: =ROUND(RAND()*(35-26)+26,0) -> 32 | T77: oC
C78: What is the average temperature in | O78: Working :
C79: Anchorage in January? | AJ79: =I80 -> -24
B80: Answer : | I80: =ROUND(T76-R77,0) -> -24
B83: 4. | C83: Simplify | P83: Working :
B85: =ROUND(RAND()*(9-2)+2,0) -> 5 | C85: ( | D85: =CHAR(RAND()*(122-97)+97) -> q | E85: + | F85: =ROUND(RAND()*(9-2)+2,0) -> 7 | G85: ) | H85: + | I85: =ROUND(RAND()*(9-2)+2,0) -> 6 | J85: ( | K85: =ROUND(RAND()*(9-2)+2,0) -> 7 | L85: - | M85: =ROUND(RAND()*(9-2)+2,0) -> 8 | N85: =D85 -> q | O85: )
C86: =ROUND(RAND()*(9-(1))+(1),0) -> 5
B87: Answer : | AK87: =B85+(I85*-M85) -> -43 | AL87: =N85 -> q | AM87: + | AN87: =F85*B85+I85*K85 -> 77
AC89: ( 3 marks )
B92: 5. | C92: Last week Lewis asked | K92: =AJ104 -> 68 | L92: students to record how many hours they spent doing homework. | AP92: =ROUND(RAND()*(1-0)+0,0) -> 0
C94: The results are shown below.
C96: Homework hours | I96: Frequency | O96: Homework hours x frequency
C97: =ROUND(RAND()*(1-0)+0,0) -> 0 | I97: =AJ97 -> 15 | AJ97: =ROUND(RAND()*(20-5)+5,0) -> 15 | AK97: =AJ97*C97 -> 0
C98: =C97+1 -> 1 | I98: =AJ98 -> 16 | AJ98: =ROUND(RAND()*(20-5)+5,0) -> 16 | AK98: =AJ98*C98 -> 16
C99: =C98+1 -> 2 | I99: 9 | AJ99: 9 | AK99: 18
C100: 3 | I100: 17 | AJ100: 17 | AK100: 51
C101: 4 | I101: 5 | AJ101: =ROUND(RAND()*(7-2)+2,0) -> 5 | AK101: 20
C102: 5 | I102: 3 | AJ102: =ROUND(RAND()*(7-2)+2,0) -> 3 | AK102: 15
C103: 6 | I103: 3 | AJ103: 3 | AK103: 18
C104: Totals = | I104: 68 | AJ104: =SUM(AJ97:AJ103) -> 68 | AK104: =SUM(AK97:AL103) -> 138
C106: Complete the above table and find the mean time spent on homework last week.
C108: Working :
C111: Round your answer to 1 decimal place. | Q111: mean = | Y111: =ROUND(AK104/AJ104,1) -> 2 | AJ111: =Y111 -> 2
AC113: ( 4 marks )
B116: 6. | C116: Nicole has | G116: =ROUND(RAND()*(90-32)+32,0)*100 -> 4200 | J116: in her Clydeside Bank account.
V117: Working :
C118: Clydeside Bank pays interest at | M118: =ROUND(RAND()*(2-1)+1,1) -> 2 | O118: % per annum. | AN118: =M118/100*G116 -> 84
AN119: =ROUND(SQRT((C122*C122)+(K119-I125)*(K119-I125)),1) -> 0
C120: Highland Bank pays interest at | M120: =M118+ROUND(RAND()*(2-1)+1,1) -> 3.8 | O120: % per annum. | AN120: =M120/100*G116 -> 159.6
C123: How much more money would Nicole get in interest
C124: if she moved her | I124: =G116 -> 4200 | L124: to the Highland Bank
C125: for one year?
S128: Answer = | AB128: =AN120-AN118 -> 75.6 | AN128: =AB128 -> 75.6
AC129: ( 3 marks )
AB131: Total marks 20

Sheet S4G_Homework 5
C3: Name :
C6: Teacher :
B9: General Official Homework 5 Created by Mr Lafferty St. Ninian's High School
D11: This homework covers topics | AC11: Score
D13: Basic Number Operations | T13: Linear Patterns | AF13: 21
D15: Simple Percentage & Money | T15: Stem - Leaf
D17: Time
D20: Teacher Comments :
D28: Pupil's Comment :
B36: 1. | C36: Carry out the following instructions. | O36: ( NON - CALCULATOR QUESTION )
B38: (a) | D38: =ROUND(RAND()*(20-10)+10,0) -> 16 | F38: - | G38: =ROUND(RAND()*(6-2)+2,1) -> 4.9 | I38: + | J38: =ROUND(RAND()*(6-2)+2,2) -> 4.45 | L38: Working : | AJ38: =I40 -> 15.55
C40: Answer : | I40: =D38-G38+J38 -> 15.55
B42: (b) | D42: =ROUND(RAND()*(50-30)+30,1) -> 36.6 | G42: x | H42: =ROUND(RAND()*(9-6)+6,0) -> 8 | L42: Working : | AJ42: =I44 -> 292.8
C44: Answer : | I44: =D42*H42 -> 292.8
B46: (c) | D46: =ROUND(RAND()*(8-2)+2,1)*H46 -> 3300 | G46: ÷ | H46: =ROUND(RAND()*(9-3)+3,0)*100 -> 600 | L46: Working : | AJ46: =I48 -> 5.5
C48: Answer : | I48: =D46/H46 -> 5.5
B50: (d) | E50: =ROUND(RAND()*(8-2)+2,0) -> 6 | F50: of | H50: =E51*E50 -> 42 | L50: Working : | AJ50: =I53 -> 36
E51: =E50+1 -> 7
C53: Answer : | I53: =H50/E51*E50 -> 36 | AC53: ( 5 marks )
B56: 2. | C56: Georgia has a part time job in a local pottery. She paints designs on coffee mugs. | AN56: =ROUND(RAND()*(39-20)+20,0)*0.25 -> 5.75
C57: Her basic rate of pay is | K57: =AN56 -> 5.75 | M57: per hour.
C59: She also gets paid an extra | L59: =AN59 -> 13 | N59: pence for every mug she paints. | AN59: =ROUND(RAND()*(30-12)+12,0) -> 13
C61: Last week Georgia worked | L61: =AN61 -> 25 | N61: hours and painted | T61: =AN62 -> 120 | V61: mugs. | AN61: =ROUND(RAND()*(40-15)+15,0) -> 25
AN62: =ROUND(RAND()*(15-5)+5,0)*10 -> 120
C65: How much was she paid ? | T65: Answer | Z65: =AJ65 -> 159.35 | AC65: ( 3 marks ) | AJ65: =L61*K57+T61*L59/100 -> 159.35
C67: Working :
B76: 3. | C76: Sandra is going to see a movie. The movie has an evening and a late night showing. | AJ76: =ROUND(RAND()*(19-17)+17,0) -> 18 | AK76: =ROUND(RAND()*(11-2)+2,0)*5 -> 35 | AN76: =CONCATENATE(AJ76,":",AK76) -> 18:35 | AO76: =TIMEVALUE(AN76) -> 0.7743055556
U77: Evening showing | X77: Late night showing | AJ77: =ROUND(RAND()*(2-1)+1,0) -> 2 | AK77: =ROUND(RAND()*(11-2)+2,0)*5 -> 35 | AN77: =CONCATENATE(AJ77,":",AK77) -> 2:35 | AO77: =TIMEVALUE(AN77) -> 0.1076388889
B78: (a) | C78: How long does the movie last? | AJ78: =AJ76+AJ77 -> 20 | AK78: =AK76+AK77 -> 70 | AN78: =CONCATENATE(AJ78,":",AK78) -> 20:70 | AO78: =AO76+AO77 -> 21:10:00
Q79: Start Time | U79: =AN76 -> 18:35 | X79: ***** | AJ79: =ROUND(RAND()*(1-0)+0,0) -> 0 | AK79: =ROUND(RAND()*(5-2)+2,0)*5 -> 25 | AN79: =CONCATENATE(AJ79,":",AK79) -> 0:25 | AO79: =AN79 -> 0:25 | AR79: 0 | AS79: =TIMEVALUE(AO79) -> 0.01736111111
B80: Answer : | I80: ( Format 1:25 ) | P80: Finishing Time | U80: =AO78 -> 21:10:00 | X80: =AO80 -> 00:25 | AN80: =AN77 -> 2:35 | AO80: =CONCATENATE(AR79,AO79) -> 00:25 | AS80: =(24+AS79)-AO77 -> 23.90972222
AO81: =AO79-AN77 -> -0.09027777778 | AS81: =AS80 -> 23.90972222
O83: Working :
B84: (b)
B85: When does the late night showing start ?
C86: =ROUND(RAND()*(9-(1))+(1),0) -> 7
B87: Answer : | I87: ( Format 21:25 )
AN88: =AS81 -> 23.90972222
AC89: ( 3 marks )
B92: 4. | C92: (a) Complete the following table | AP92: =ROUND(RAND()*(1-0)+0,0) -> 0
AL93: b | AM93: = | AN93: =ROUND(RAND()*(9-5)+5,0) -> 7 | AO93: m | AP93: =IF(AP92=0,"+","-") -> + | AQ93: =ROUND(RAND()*(4-1)+1,0) -> 3
B94: Number of M-shapes (m) | J94: 1 | K94: 2 | L94: 3 | M94: 4 | N94: 5 | Q94: =ROUND(RAND()*(15-9)+9,0) -> 10
B95: Number of silver bars (b) | J95: =IF($AP$93="+",J94*$AN$93+$AQ$93,J94*$AN$93-$AQ$93) -> 10 | L95: =IF($AP$93="+",L94*$AN$93+$AQ$93,L94*$AN$93-$AQ$93) -> 24 | M95: =IF($AP$93="+",M94*$AN$93+$AQ$93,M94*$AN$93-$AQ$93) -> 31 | AL95: C | AM95: = | AN95: =IF($AP$93="+",Q94*AN93+AQ93,Q94*AN93-AQ93) -> 73
AB96: Answer :
C97: (b) Write down a formula for calculating the number of bars (b) when you | Z97: b =
D98: know the number of M-shapes (m). | AM98: 2 | AN98: =IF($AP$93="+",K94*$AN$93+$AQ$93,K94*$AN$93-$AQ$93) -> 17
D99: Working : | AM99: 5 | AN99: =IF($AP$93="+",N94*$AN$93+$AQ$93,N94*$AN$93-$AQ$93) -> 38
AM100: 11 | AN100: =AN95 -> 73
AL101: C | AM101: = | AN101: =IF($AP$93="+",AO101*$AN$93+$AQ$93,AO101*$AN$93-$AQ$93) -> 136 | AO101: =ROUND(RAND()*(30-19)+19,0) -> 19
C102: (c) Find the number of M - shapes given | P102: =AN101 -> 136 | R102: silver bars. | W102: Answer m = | AN102: =AO101 -> 19
D104: Working :
AC112: ( 6 marks )
B115: 5. | C115: Each pupil in a science class is growing a plant. | AO115: =ROUND(RAND()*(6-1)+1,0) -> 5 | AP115: =ROUND(RAND()*(2-1)+1,0) -> 2 | AQ115: =ROUND(RAND()*(3-2)+2,0) -> 3 | AR115: =ROUND(RAND()*(4-3)+3,0) -> 4 | AS115: =ROUND(RAND()*(5-4)+4,0) -> 5 | AT115: =ROUND(RAND()*(9-5)+5,0) -> 6
C116: A few weeks later the height of each plant is measured. | V116: Working : | AO116: =AO115+1 -> 6 | AP116: =ROUND(RAND()*(2-1)+1,0) -> 1 | AQ116: =ROUND(RAND()*(3-2)+2,0) -> 2 | AR116: =ROUND(RAND()*(4-3)+3,0) -> 4 | AS116: =ROUND(RAND()*(5-4)+4,0) -> 5 | AT116: =ROUND(RAND()*(7-5)+5,0) -> 7 | AU116: =ROUND(RAND()*(9-7)+7,0) -> 8
AO117: =AO116+1 -> 7 | AP117: =ROUND(RAND()*(2-1)+1,0) -> 1 | AQ117: =ROUND(RAND()*(4-2)+2,0) -> 3 | AR117: =ROUND(RAND()*(7-4)+4,0) -> 4 | AS117: =ROUND(RAND()*(9-7)+7,0) -> 8
C118: The heights in centimetres are shown below. | AO118: 8 | AP118: =ROUND(RAND()*(2-1)+1,0) -> 1 | AQ118: =ROUND(RAND()*(4-2)+2,0) -> 2 | AR118: =ROUND(RAND()*(7-4)+4,0) -> 7 | AS118: =ROUND(RAND()*(9-7)+7,0) -> 8
C120: =AQ120 -> 5.3 | E120: =AU120 -> 5.5 | G120: =AY120 -> 6.1 | I120: =BC120 -> 6.4 | K120: =AQ121 -> 7.1 | M120: =AO120 -> 5.2 | O120: =BE121 -> 8.8 | Q120: =AU121 -> 7.4 | S120: =AO121 -> 6.8 | AO120: =CONCATENATE($AO$115,".",AP115) -> 5.2 | AQ120: =CONCATENATE($AO$115,".",AQ115) -> 5.3 | AS120: =CONCATENATE($AO$115,".",AR115) -> 5.4 | AU120: =CONCATENATE($AO$115,".",AS115) -> 5.5 | AW120: =CONCATENATE($AO$115,".",AT115) -> 5.6 | AY120: =CONCATENATE(AO116,".",AP116) -> 6.1 | BA120: =CONCATENATE(AO116,".",AQ116) -> 6.2 | BC120: =CONCATENATE(AO116,".",AR116) -> 6.4 | BE120: =CONCATENATE(AO116,".",AS116) -> 6.5 | BG120: =CONCATENATE(AO116,".",AT116) -> 6.7
C121: =AY121 -> 8.1 | E121: =AS121 -> 7.3 | G121: =AS120 -> 5.4 | I121: =BC121 -> 8.7 | K121: =AW120 -> 5.6 | M121: =AW121 -> 7.8 | O121: =BA120 -> 6.2 | Q121: =BA121 -> 8.2 | S121: =BG120 -> 6.7 | AO121: =CONCATENATE(AO116,".",AU116) -> 6.8 | AQ121: =CONCATENATE(AO117,".",AP117) -> 7.1 | AS121: =CONCATENATE(AO117,".",AQ117) -> 7.3 | AU121: =CONCATENATE(AO117,".",AR117) -> 7.4 | AW121: =CONCATENATE(AO117,".",AS117) -> 7.8 | AY121: =CONCATENATE(AO118,".",AP118) -> 8.1 | BA121: =CONCATENATE(AO118,".",AQ118) -> 8.2 | BC121: =CONCATENATE(AO118,".",AR118) -> 8.7 | BE121: =CONCATENATE(AO118,".",AS118) -> 8.8
C122: =BE120 -> 6.5
C124: (a) Complete the ordered stem-leaf.
E126: Height of Plants
O128: (b) | P128: Find the median height. | AA128: cm | AN128: =BG120 -> 6.7
AC129: ( 4 marks )
C132: n = 19 | G132: Key | I132: =AO115 -> 5 | J132: =AP115 -> 2 | K132: means | M132: =AO120 -> 5.2 | AB132: Total marks 21

Sheet S4G_Homework 6
C3: Name :
C6: Teacher :
B9: General Official Homework 6 Created by Mr Lafferty St. Ninian's High School
D11: This homework covers topics | AC11: Score
D13: Basic Number Operations | T13: Algebraic Equations | AF13: 21
D15: Distance Speed Time | T15: Perimeter
D17: Percentage & Money | T17: Trigonometry
D20: Teacher Comments :
D28: Pupil's Comment :
B36: 1. | C36: Carry out the following instructions. | O36: ( NON - CALCULATOR QUESTION )
B38: (a) | D38: =ROUND(RAND()*(950-730)+730,1) -> 865.2 | G38: - | H38: =ROUND(RAND()*(550-330)+330,1) -> 332.6 | L38: Working : | AJ38: =I40 -> 532.6
C40: Answer | I40: =D38-H38 -> 532.6
B42: (b) | D42: =ROUND(RAND()*(50-15)+15,1) -> 46.5 | G42: x | H42: =ROUND(RAND()*(9-3)+3,0)*10 -> 30 | L42: Working : | AJ42: =I44 -> 1395
C44: Answer | I44: =D42*H42 -> 1395
B46: (c) | D46: =ROUND(RAND()*(98-32)+32,1)*H46 -> 270.5 | G46: ÷ | H46: =ROUND(RAND()*(9-4)+4,0) -> 5 | L46: Working : | AJ46: =I48 -> 54.1
C48: Answer : | I48: =D46/H46 -> 54.1
B50: (d) | D50: =ROUND(RAND()*(9-2)+2,0)*10 -> 40 | F50: % of | H50: =ROUND(RAND()*(9-2)+2,1)*10 -> 23 | L50: Working : | AJ50: =I53 -> 9.2
C53: Answer : | I53: =H50*D50/100 -> 9.2 | AC53: ( 5 marks )
B56: 2. | C56: Liam's new car has an on-board computer.
C57: At the end of a journey the car’s computer displays the information below.
H59: Journey information
H60: Distance | M60: =AJ61*AJ63 -> 239.1666667 | Q60: miles
H61: Averaage Speed | M61: =AJ61 -> 70 | Q61: miles/hour | AJ61: =ROUND(RAND()*(14-6)+6,0)*5 -> 70
AJ62: =AK65/60 -> 0.4166666667
C63: Use the information above to calculate the time he has taken for his journey. | AJ63: =AJ65+AJ62 -> 3.416666667
C64: Give your answer in hours and minutes.
N65: Answer | T65: hrs | Y65: mins | AC65: ( 3 marks ) | AJ65: =ROUND(RAND()*(3-1)+1,0) -> 3 | AK65: =ROUND(RAND()*(11-1)+1,0)*5 -> 25
C67: Working :
B76: 3. | C76: Gordon buys an antique teapot for | N76: =ROUND(RAND()*(19-1)+1,0)*5 -> 80 | AC76: ( 3 marks )
C77: He sells it on an Internet auction site for | P77: =N76+AJ79/100*N76 -> 120
C78: Calculate his percentage profit. | O78: Working :
AJ79: =ROUND(RAND()*(19-1)+1,0)*5 -> 50
B80: Answer : | I80: %
B83: 4. | C83: Solve algebraically the equation. | O83: Working :
C85: =ROUND(RAND()*(9-5)+5,0) -> 7 | D85: =CHAR(RAND()*(122-97)+97) -> t | E85: - | F85: =ROUND(RAND()*(5-2)+2,0) -> 5 | G85: = | H85: =ROUND(RAND()*(4-2)+2,0) -> 3 | I85: =D85 -> t | J85: + | K85: =(C85*H87-F85)-H85*H87 -> 15
C86: =ROUND(RAND()*(9-(1))+(1),0) -> 5
B87: Answer : | H87: =ROUND(RAND()*(9-2)+(2),0) -> 5 | AN87: =H87 -> 5
AC89: ( 3 marks )
B92: 5. | C92: Jordan is making a sign for Capaldi’s Ice Cream Parlour. | AP92: =ROUND(RAND()*(1-0)+0,0) -> 1
C93: The sign will have two equal straight edges and a semi-circular edge.
AA94: =CONCATENATE(AN95,AO95) -> 0.7m
C95: Each straight edge is | J95: =V98 -> 2.51 | L95: metres long and | AN95: =ROUND(RAND()*(0.9-0.3)+0.3,1) -> 0.7 | AO95: m
C96: the radius of the semi-circle is | M96: =AN95 -> 0.7 | O96: metres. | AN96: =CONCATENATE(AN95,AO95) -> 0.7m
V98: =ROUND(RAND()*(4-2)+2,2) -> 2.51 | Y98: m
C99: Calculate the perimeter of the sign to 1 decimal place.
Q101: Perimeter = | X101: m | AN101: =ROUND(V98+V98+(0.5*PI()*2*AN95),1) -> 7.2
D104: Working :
AC112: ( 4 marks )
B115: 6. | C115: A boat elevator is used to take a boat from the lower canal to the upper canal.
C116: The boat elevator is in the shape of a triangle. | V116: Working :
C117: The length of the hypotenuse is | M117: =AN122 -> 79.86039066 | O117: metres.
C118: The height of the triangle is | L118: =N122 -> 26 | N118: metres. | AN118: =ROUND(SQRT((C121*C121)+(K118-I124)*(K118-I124)),1) -> 0
F119: =ROUND(RAND()*(40-15)+15,0) -> 33
H122: =AN122 -> 79.86039066 | J122: m | N122: =ROUND(RAND()*(40-15)+15,0) -> 26 | P122: m | AN122: =N122/SIN(AN127*PI()/180) -> 79.86039066
J124: xo
C127: Calculate the size of the shaded angle x °to the nearest degree. | AA127: o | AN127: =ROUND(RAND()*(20-10)+10,0) -> 19
AC128: ( 3 marks )
AB130: Total marks 21

Sheet S4G_Homework 7
C3: Name :
C6: Teacher :
B9: General Official Homework 7 Created by Mr Lafferty St. Ninian's High School
D11: This homework covers topics | AC11: Score
D13: Basic Number Operations | T13: Algebraic Brackets | AF13: 22
D15: Pythagoras Theorem | T15: Mean from Frequency Table
D17: Conversion | T17: Length & Circle
D20: Teacher Comments :
D28: Pupil's Comment :
B36: 1. | C36: Carry out the following instructions. | O36: ( NON - CALCULATOR QUESTION )
B38: (a) | D38: =ROUND(RAND()*(950-730)+730,1) -> 738.3 | G38: - | H38: =ROUND(RAND()*(550-330)+330,1) -> 500.7 | L38: Working : | AJ38: =I40 -> 237.6
C40: Answer | I40: =D38-H38 -> 237.6
B42: (b) | D42: =ROUND(RAND()*(50-15)+15,1) -> 17.5 | G42: x | H42: =ROUND(RAND()*(9-3)+3,0)*10 -> 70 | L42: Working : | AJ42: =I44 -> 1225
C44: Answer | I44: =D42*H42 -> 1225
B46: (c) | D46: =ROUND(RAND()*(98-32)+32,1)*H46 -> 273 | G46: ÷ | H46: =ROUND(RAND()*(9-4)+4,0) -> 5 | L46: Working : | AJ46: =I48 -> 54.6
C48: Answer : | I48: =D46/H46 -> 54.6
B50: (d) | D50: =ROUND(RAND()*(9-2)+2,0)*10 -> 50 | F50: % of | H50: =ROUND(RAND()*(9-2)+2,1)*10 -> 25 | L50: Working : | AJ50: =I53 -> 12.5
C53: Answer : | I53: =H50*D50/100 -> 12.5 | AC53: ( 5 marks )
B56: 2. | C56: Lewis is designing a bird box for his garden. | AJ56: =ROUND(RAND()*(9-2)+2,0)*2 -> 16 | AK56: cm | AN56: =CONCATENATE(AJ56,AK56) -> 16cm
C57: The dimensions for the side of the box are shown in the diagram below. | AJ57: =AJ56+ROUND(RAND()*(10-5)+5,0) -> 24 | AK57: cm | AN57: =CONCATENATE(AJ57,AK57) -> 24cm
I58: P | AJ58: =AJ57+ROUND(RAND()*(10-5)+5,0) -> 33 | AK58: cm | AN58: 33cm
G60: =AN57 -> 24cm | M60: S
N61: =AN56 -> 16cm
I63: Q | J63: =AN58 -> 33cm | M63: R
C65: Calculate the length of side PS to 1 decimal place. | T65: Answer | Z65: cm | AC65: ( 4 marks ) | AJ65: =ROUND(SQRT((AJ57-AJ56)*(AJ57-AJ56)+(AJ58*AJ58)),1) -> 34
C67: Working :
B76: 3. | C76: Ben needs | G76: =AK76 -> 300 | J76: grams of flour to bake two small loaves of bread. | AC76: ( 2 marks ) | AK76: =ROUND(RAND()*(10-5)+5,0)*50 -> 300
C77: How many kilograms of flour | AK77: =ROUND(RAND()*(19-11)+11,0) -> 15
C78: will he need for | I78: =AK77 -> 15 | K78: small loaves? | O78: Working :
AJ79: =AK76/1000*AK77 -> 4.5
B80: Answer : | I80: kg
B83: 4. | C83: Simplify | P83: Working :
B85: =ROUND(RAND()*(9-2)+2,0) -> 7 | C85: ( | D85: =CHAR(RAND()*(122-97)+97) -> s | E85: + | F85: =ROUND(RAND()*(9-2)+2,0) -> 8 | G85: ) | H85: + | I85: =ROUND(RAND()*(9-2)+2,0) -> 5 | J85: ( | K85: =ROUND(RAND()*(9-2)+2,0) -> 3 | L85: - | M85: =ROUND(RAND()*(9-2)+2,0) -> 9 | N85: =D85 -> s | O85: )
C86: =ROUND(RAND()*(9-(1))+(1),0) -> 4
B87: Answer : | AK87: =B85+(I85*-M85) -> -38 | AL87: =N85 -> s | AM87: + | AN87: =F85*B85+I85*K85 -> 71
AC89: ( 3 marks )
B92: 5. | C92: Danielle wanted to know the average number of hours cars were parked in a car park. | AP92: =ROUND(RAND()*(1-0)+0,0) -> 0
C93: She did a survey of | J93: =AJ104 -> 68 | L93: cars which were parked in the car park on a particular day.
C94: Her results are shown below.
C96: Parking time (Hours) | I96: Frequency | O96: Parking Time x frequency
C97: =ROUND(RAND()*(2-1)+1,0) -> 2 | I97: =AJ97 -> 11 | AJ97: =ROUND(RAND()*(20-5)+5,0) -> 11 | AK97: =AJ97*C97 -> 22
C98: =C97+1 -> 3 | I98: =AJ98 -> 18 | AJ98: =ROUND(RAND()*(20-5)+5,0) -> 18 | AK98: =AJ98*C98 -> 54
C99: =C98+1 -> 4 | I99: 18 | AJ99: 18 | AK99: 72
C100: 5 | I100: 6 | AJ100: 6 | AK100: 30
C101: 6 | I101: 5 | AJ101: =ROUND(RAND()*(7-2)+2,0) -> 5 | AK101: 30
C102: 7 | I102: 7 | AJ102: =ROUND(RAND()*(7-2)+2,0) -> 7 | AK102: 49
C103: 8 | I103: 3 | AJ103: 3 | AK103: 24
C104: Totals = | I104: 68 | AJ104: =SUM(AJ97:AJ103) -> 68 | AK104: =SUM(AK97:AL103) -> 281
C106: Complete the above table and find the mean parking time per car.
C108: Working :
C111: Round your answer to 1 decimal place. | Q111: mean = | Y111: hours | AJ111: =ROUND(AK104/AJ104,1) -> 4.1
AC113: ( 4 marks )
B116: 6. | C116: Circular tops for yoghurt cartons are cut from a strip
C117: of metal foil as shown below. | V117: Working :
AN118: =ROUND(RAND()*(7-3)+3,0) -> 6 | AO118: cm
AN119: =ROUND(RAND()*(2-1)+1,0) -> 1 | AO119: cm
C120: =AN121 -> 1cm | H120: =AT121 -> 0 | M120: =AY121 -> 0 | AN120: =CONCATENATE(AN118,AO118) -> 6cm
F121: =AN120 -> 6cm | K121: =AS120 -> 0 | P121: =AX120 -> 0 | AN121: =CONCATENATE(AN119,AO119) -> 1cm
AN122: =ROUND(RAND()*(10-6)+6,0) -> 9 | AO122: m
C125: The radius of each top is | K125: =AN118 -> 6 | L125: centimetres.
C126: The gap between each top is | L126: =AN119 -> 1 | M126: centimetre.
S128: Answer = | AN128: =ROUNDDOWN(AN122*100/(AN119+AN118+AN118),0) -> 69
AC129: ( 4 marks )
C130: How many tops can be cut from a strip of foil | Q130: =AN122 -> 9 | R130: metres long ?
AB131: Total marks 22

Sheet S4G_Homework 8
C3: Name :
C6: Teacher :
B9: General Official Homework 8 Created by Mr Lafferty St. Ninian's High School
D11: This homework covers topics | AC11: Score
D13: Basic Number Operations | T13: Money & Percentages | AF13: 22
D15: Simple Percentage | T15: Linear Patterns
D17: Negative Numbers | T17: Perimeter & Area
D20: Teacher Comments :
D28: Pupil's Comment :
B36: 1. | C36: Carry out the following instructions. | O36: ( NON - CALCULATOR QUESTION )
B38: (a) | D38: =ROUND(RAND()*(20-10)+10,0) -> 17 | F38: - | G38: =ROUND(RAND()*(6-2)+2,1) -> 4.5 | I38: + | J38: =ROUND(RAND()*(6-2)+2,2) -> 2.92 | L38: Working : | AJ38: =I40 -> 15.42
C40: Answer : | I40: =D38-G38+J38 -> 15.42
B42: (b) | D42: =ROUND(RAND()*(50-30)+30,1) -> 36.7 | G42: x | H42: =ROUND(RAND()*(9-6)+6,0) -> 8 | L42: Working : | AJ42: =I44 -> 293.6
C44: Answer : | I44: =D42*H42 -> 293.6
B46: (c) | D46: =ROUND(RAND()*(8-2)+2,1)*H46 -> 3360 | G46: ÷ | H46: =ROUND(RAND()*(9-3)+3,0)*100 -> 800 | L46: Working : | AJ46: =I48 -> 4.2
C48: Answer : | I48: =D46/H46 -> 4.2
B50: (d) | E50: =ROUND(RAND()*(8-2)+2,0) -> 7 | F50: of | H50: =E51*E50 -> 56 | L50: Working : | AJ50: =I53 -> 49
E51: =E50+1 -> 8
C53: Answer : | I53: =H50/E51*E50 -> 49 | AC53: ( 5 marks )
B56: 2. | C56: In the “Fame Show”, the percentage of telephone votes cast for each act is shown below.
F58: Plastik Money | K58: =ROUND(RAND()*(12-9)+9,0)*2 -> 20 | L58: %
F59: Brian Martins | K59: =ROUND(RAND()*(17-13)+13,0)*2 -> 26 | L59: %
F60: Starshine | K60: =ROUND(RAND()*(16-10)+10,0)*2 -> 26 | L60: %
F61: Carrie Gordon | K61: =100-(K58+K59+K60) -> 28 | L61: %
C63: Altogether | G63: =AJ63 -> 18000000 | L63: votes were cast. | AJ63: =ROUND(RAND()*(12-7)+7,0)*2*1000000 -> 18000000
C65: How many votes did Starshine receive? | T65: Answer | AA65: votes | AC65: ( 3 marks ) | AJ65: =AJ63*K60/100 -> 4680000
C67: Working :
B76: 3. | C76: One day last February, Paige compared the temperature in Edinburgh | AC76: ( 2 marks )
C77: with the temperature in Montreal.
C78: The temperature in Edinburgh was | N78: =AJ78 -> 14 | P78: oC | R78: Working : | AJ78: =ROUND(RAND()*(15-(4))+(4),0) -> 14
C79: The temperature in Montreal was | N79: =AJ79 -> -14 | P79: oC | AJ79: =ROUND(RAND()*(-5-(-20))+(-20),0) -> -14
C81: Find the difference between these temperatures.
B82: Answer : | I82: oC | AJ82: =AJ78-AJ79 -> 28
B84: 4. | C84: The price of a laptop is reduced from | O84: Working :
C85: =AJ86 -> 800 | F85: to | G85: =AJ87 -> 680 | AJ85: =ROUND(RAND()*(6-(1))+(1),0)*5 -> 15
C86: Calculate the percentage reduction in the | AJ86: =ROUND(RAND()*(9-(4))+(4),0)*100 -> 800
C87: price of the laptop. | AJ87: =(100-AJ85)/100*AJ86 -> 680
B88: Answer : | H88: % | AK88: =AJ85 -> 15
AC90: ( 3 marks )
B93: 5. | C93: Maura is laying a path in a nursery school. | AP93: =ROUND(RAND()*(1-0)+0,0) -> 1
C94: She is using a mixture of alphabet tiles and coloured tiles. | AL94: C | AM94: = | AN94: =ROUND(RAND()*(9-5)+5,0) -> 5 | AO94: A | AP94: =IF(AP93=0,"+","-") -> - | AQ94: =ROUND(RAND()*(4-1)+1,0) -> 4
C96: (a) Complete the table below.
B97: Number of alphabet tiles (A) | J97: 1 | K97: 2 | L97: 3 | M97: 4 | N97: 5 | Q97: =ROUND(RAND()*(15-9)+9,0) -> 12
B98: Number of coloured tiles (C) | J98: =IF($AP$94="+",J97*$AN$94+$AQ$94,J97*$AN$94-$AQ$94) -> 1 | L98: =IF($AP$94="+",L97*$AN$94+$AQ$94,L97*$AN$94-$AQ$94) -> 11 | M98: =IF($AP$94="+",M97*$AN$94+$AQ$94,M97*$AN$94-$AQ$94) -> 16 | AL98: C | AM98: = | AN98: =IF($AP$94="+",Q97*AN94+AQ94,Q97*AN94-AQ94) -> 56
AB99: Answer :
C100: (b) Write down a formula connecting the number of chairs and tables. | D100: Write down a formula for calculating the number of coloured tiles (C) | Z100: C =
D101: when you know the number of alphabet tiles (A). | AM101: 2 | AN101: =IF($AP$94="+",K97*$AN$94+$AQ$94,K97*$AN$94-$AQ$94) -> 6
D102: Working : | AM102: 5 | AN102: =IF($AP$94="+",N97*$AN$94+$AQ$94,N97*$AN$94-$AQ$94) -> 21
AM103: 11 | AN103: =AN98 -> 56
AL104: C | AM104: = | AN104: =IF($AP$94="+",AO104*$AN$94+$AQ$94,AO104*$AN$94-$AQ$94) -> 106 | AO104: =ROUND(RAND()*(30-19)+19,0) -> 22
C105: (c) How many tables are required for | D105: Maura uses | H105: =AN104 -> 106 | J105: coloured tiles to make the path. | W105: Answer A = | AN105: =AO104 -> 22
D106: How many alphabet tiles will be in the path?
D108: Working :
AC115: ( 6 marks )
B118: 6. | C118: A tennis court is | I118: =AN118 -> 10 | K118: metres wide. | AN118: =ROUND(RAND()*(16-(9))+(9),0) -> 10
C119: It has an area of | I119: =AN119 -> 230 | K119: square metres. | V119: Working : | AN119: =AN118*(AN118+ROUND(RAND()*(16-9)+9,0)) -> 230
AN120: =AN119/AN118 -> 23
AN121: =ROUND(SQRT((C124*C124)+(K121-I127)*(K121-I127)),1) -> 0
Q124: =AN118 -> 10 | S124: metres
C130: Calculate the perimeter of the tennis court. | S130: Answer = | AA130: metres | AN130: =2*(AN120+AN118) -> 66
AC131: ( 3 marks )
AB133: Total marks 22

Sheet S4G_Homework 9
C3: Name :
C6: Teacher :
B9: General Official Homework 9 Created by Mr Lafferty St. Ninian's High School
D11: This homework covers topics | AC11: Score
D13: Basic Number Operations | T13: Algebraic Equations | AF13: 22
D15: Pythagoras Theorem | T15: Money Hire Purchase
D17: Money Exchange Rate | T17: Trigonometry
D20: Teacher Comments :
D28: Pupil's Comment :
B36: 1. | C36: Carry out the following instructions. | O36: ( NON - CALCULATOR QUESTION )
B38: (a) | D38: =ROUND(RAND()*(950-730)+730,1) -> 736.7 | G38: - | H38: =ROUND(RAND()*(550-330)+330,1) -> 452.5 | L38: Working : | AJ38: =I40 -> 284.2
C40: Answer | I40: =D38-H38 -> 284.2
B42: (b) | D42: =ROUND(RAND()*(50-15)+15,1) -> 24.1 | G42: x | H42: =ROUND(RAND()*(9-3)+3,0)*10 -> 70 | L42: Working : | AJ42: =I44 -> 1687
C44: Answer | I44: =D42*H42 -> 1687
B46: (c) | D46: =ROUND(RAND()*(98-32)+32,1)*H46 -> 353.4 | G46: ÷ | H46: =ROUND(RAND()*(9-4)+4,0) -> 6 | L46: Working : | AJ46: =I48 -> 58.9
C48: Answer : | I48: =D46/H46 -> 58.9
B50: (d) | D50: =ROUND(RAND()*(9-2)+2,0)*10 -> 40 | F50: % of | H50: =ROUND(RAND()*(9-2)+2,1)*10 -> 23 | L50: Working : | AJ50: =I53 -> 9.2
C53: Answer : | I53: =H50*D50/100 -> 9.2 | AC53: ( 5 marks )
B56: 2. | C56: An earring in the shape of an isosceles triangle is made from silver wire.
C57: The dimensions of the earring are shown on the diagram below.
O59: =AN62 -> 9cm
AJ61: =ROUND(RAND()*(8-3)+3,0) -> 6 | AK61: cm | AN61: =CONCATENATE(AJ61,AK61) -> 6cm
L62: =AN61 -> 6cm | AJ62: =AJ61+ROUND(RAND()*(5-2)+2,0) -> 9 | AK62: cm | AN62: =CONCATENATE(AJ62,AK62) -> 9cm
AJ63: =ROUND(2*SQRT((AJ62*AJ62)+(AJ61*AJ61))+AJ61,1) -> 27.6
C64: Calculate the length of silver wire needed to make a pair of earrings to 1 decimal place.
N65: Answer | T65: cm | AC65: ( 4 marks )
C67: Working :
B76: 3. | C76: When on holiday in Spain, Connor sees a pair of jeans priced at | V76: =AJ79 -> 90 | X76: euros. | AC76: ( 3 marks )
C77: Connor knows that he gets | L77: =AJ80 -> 18 | M77: euros for £10.
C78: What is the price of the jeans | O78: Working :
C79: in pounds to the nearest pence ? | AJ79: =ROUND(RAND()*(19-10)+10,0)*5 -> 90
B80: Answer : | AJ80: =ROUND(RAND()*(19-10)+10,0) -> 18
AJ81: =ROUND(AJ79/AJ80*10,2) -> 50
B83: 4. | C83: Solve algebraically the equation. | O83: Working :
C85: =ROUND(RAND()*(9-5)+5,0) -> 9 | D85: =CHAR(RAND()*(122-97)+97) -> m | E85: - | F85: =ROUND(RAND()*(5-2)+2,0) -> 4 | G85: = | H85: =ROUND(RAND()*(4-2)+2,0) -> 3 | I85: =D85 -> m | J85: + | K85: =(C85*H87-F85)-H85*H87 -> 50
C86: =ROUND(RAND()*(9-(1))+(1),0) -> 7
B87: Answer : | H87: =ROUND(RAND()*(9-2)+(2),0) -> 9 | AN87: =H87 -> 9
AC89: ( 3 marks )
B92: 5. | C92: Liam buys a new stereo using the monthly payment plan. | T92: The cash price of the stereo is | AD92: =AN92 -> 700 | AN92: =ROUND(RAND()*(9-3)+3,0)*100 -> 700 | AP92: =ROUND(RAND()*(1-0)+0,0) -> 1
C93: The total cost of the monthly payment plan is | Q93: =AN93 -> 10 | R93: % more than the cash price. | AN93: =ROUND(RAND()*(3-1)+1,0)*5 -> 10
AN94: =AN92+AN92*0.05 -> 735
C95: Liam pays a deposit of one fifth of the cash price followed by | V95: =AN95 -> 18 | X95: equal monthly payments. | AN95: =ROUND(RAND()*(6-1)+1,0)*6 -> 18
AN96: =AN92/5 -> 140
AN97: =AN94-AN96 -> 595
C100: How much will Liam pay each month
C101: to the nearest pence ? | Q101: Payments = | AN101: =ROUND(AN97/AN95,2) -> 33.06
D104: Working :
AC112: ( 4 marks )
B115: 6. | C115: Chris is making a frame to strengthen a stairway in a shopping centre.
C116: He needs to know the angle the stairway makes with the floor, | V116: Working :
C117: as shown in the diagram below.
C118: The hypotenuse of the frame is 5·2m | AN118: =ROUND(SQRT((C121*C121)+(K118-I124)*(K118-I124)),1) -> 0
C119: and the horizontal distance is 4·5m.
H122: =ROUND(RAND()*(8.2-5.4)+5.4,1) -> 6.1 | J122: m | AN122: =ROUND(ACOS(J125/H122)*180/PI(),0) -> 42
J124: xo
J125: =ROUND(RAND()*(4.9-4.1)+4.1,1) -> 4.5 | L125: m
C127: Calculate the size of the shaded angle x º to the nearest degree. | AA127: o | AN127: =AN122 -> 42
AC128: ( 3 marks )
AB130: Total marks 22

Sheet S4G_Homework 10
C3: Name :
C6: Teacher :
B9: General Official Homework 10 Created by Mr Lafferty St. Ninian's High School
D11: This homework covers topics | AC11: Score
D13: Basic Number Operations | T13: Algebraic Equations | AF13: 19
D15: Money | T15: Speed Distance Time
D17: Statistics | T17: Stem-Leaf
D20: Teacher Comments :
D28: Pupil's Comment :
B36: 1. | C36: Carry out the following instructions. | O36: ( NON - CALCULATOR QUESTION )
B38: (a) | D38: =ROUND(RAND()*(950-730)+730,1) -> 935.6 | G38: - | H38: =ROUND(RAND()*(550-330)+330,1) -> 534 | L38: Working : | AJ38: =I40 -> 401.6
C40: Answer | I40: =D38-H38 -> 401.6
B42: (b) | D42: =ROUND(RAND()*(50-15)+15,1) -> 25.6 | G42: x | H42: =ROUND(RAND()*(9-3)+3,0)*10 -> 80 | L42: Working : | AJ42: =I44 -> 2048
C44: Answer | I44: =D42*H42 -> 2048
B46: (c) | D46: =ROUND(RAND()*(98-32)+32,1)*H46 -> 521.4 | G46: ÷ | H46: =ROUND(RAND()*(9-4)+4,0) -> 6 | L46: Working : | AJ46: =I48 -> 86.9
C48: Answer : | I48: =D46/H46 -> 86.9
B50: (d) | D50: =ROUND(RAND()*(9-2)+2,0)*10 -> 50 | F50: % of | H50: =ROUND(RAND()*(9-2)+2,1)*10 -> 66 | L50: Working : | AJ50: =I53 -> 33
C53: Answer : | I53: =H50*D50/100 -> 33 | AC53: ( 5 marks )
B56: 2. | C56: Rowan wants to buy | J56: =AJ56 -> 22 | K56: theatre tickets. | AJ56: =ROUND(RAND()*(10-2)+2,0)*3+1 -> 22
C57: The price of one ticket is | K57: =AJ57 -> 24.5 | AJ57: =ROUND(RAND()*(50-12)+12,0)*0.5 -> 24.5
C58: The theatre has a special online offer of four tickets for the price of three.
C60: Rowan makes use of the special online offer.
AJ61: =AJ56/4 -> 5.5
C62: How much does Rowan pay for the | N62: =AJ56 -> 22 | O62: theatre tickets? | AJ62: =TRUNC(AJ61,0) -> 5
N65: Answer | AC65: ( 3 marks ) | AJ65: =AJ62*3*AJ57+AJ57 -> 392
C67: Working :
AK75: =ROUND(RAND()*(210-200)+200,0) -> 203 | AM75: =ROUND(RAND()*(220-210)+210,0) -> 214 | AO75: =ROUND(RAND()*(220-210)+210,0) -> 213 | AQ75: =ROUND(RAND()*(220-210)+210,0) -> 216 | AS75: =ROUND(RAND()*(230-220)+220,0) -> 220
B76: 3. | C76: Ten people were asked to guess the number of coffee beans in a jar. | AC76: ( 2 marks ) | AK76: =ROUND(RAND()*(240-230)+230,0) -> 233 | AM76: =ROUND(RAND()*(240-230)+230,0) -> 240 | AO76: =ROUND(RAND()*(310-300)+300,0) -> 308 | AQ76: =ROUND(RAND()*(310-300)+300,0) -> 303 | AS76: =ROUND(RAND()*(320-310)+310,0) -> 319
C77: Their guesses were:
C78: =AS76 -> 319 | E78: =AQ76 -> 303 | G78: =AM75 -> 214 | I78: =AO75 -> 213 | K78: =AQ75 -> 216 | O78: Working :
C79: =AS75 -> 220 | E79: =AK76 -> 233 | G79: 240 | I79: 308 | K79: =AK75 -> 203
C81: Find the median | AJ81: =(AS75+AK76)/2 -> 226.5
B83: 4. | C83: Solve algebraically the equation. | O83: Working :
C85: =ROUND(RAND()*(9-5)+5,0) -> 7 | D85: =CHAR(RAND()*(122-97)+97) -> a | E85: - | F85: =ROUND(RAND()*(5-2)+2,0) -> 4 | G85: = | H85: =ROUND(RAND()*(4-2)+2,0) -> 2 | I85: =D85 -> a | J85: + | K85: =(C85*H87-F85)-H85*H87 -> 16
C86: =ROUND(RAND()*(9-(1))+(1),0) -> 4
B87: Answer : | H87: =ROUND(RAND()*(9-2)+(2),0) -> 4 | AN87: =H87 -> 4
AC89: ( 3 marks )
B92: 5. | C92: For safety reasons the speed limit in London city centre is | U92: =AN92 -> 20 | W92: miles per hour. | AN92: =ROUND(RAND()*(3-2)+2,0)*10 -> 20 | AP92: =ROUND(RAND()*(1-0)+0,0) -> 0
AN93: =ROUND(RAND()*(9-1)+1,0)*6 -> 36
C94: The distance between two particular speed limit signs is | T94: =AN97 -> 15.6 | V94: miles. | AN94: =ROUND(RAND()*(35-10)+10,0) -> 26
C96: A van took | G96: =AN93 -> 36 | I96: minutes to travel between these signs.
AN97: =AN93/60*AN94 -> 15.6
C101: What was the speed of the van ? | Q101: Speed | X101: mph | AN101: =AN94 -> 26
D104: Working :
AC112: ( 3 marks )
B115: 5. | C115: Caitlin asked her class to note the number of songs | AO115: 1 | AP115: =ROUND(RAND()*(2-1)+1,0) -> 1 | AQ115: =ROUND(RAND()*(3-2)+2,0) -> 3 | AR115: =ROUND(RAND()*(4-3)+3,0) -> 3 | AS115: =ROUND(RAND()*(5-4)+4,0) -> 5 | AT115: =ROUND(RAND()*(9-5)+5,0) -> 9
C116: they downloaded to their phones in the last month. | V116: Working : | AO116: 2 | AP116: =ROUND(RAND()*(2-1)+1,0) -> 2 | AQ116: =ROUND(RAND()*(3-2)+2,0) -> 3 | AR116: =ROUND(RAND()*(4-3)+3,0) -> 3 | AS116: =ROUND(RAND()*(5-4)+4,0) -> 4 | AT116: =ROUND(RAND()*(7-5)+5,0) -> 7 | AU116: =ROUND(RAND()*(9-7)+7,0) -> 8
AO117: 3 | AP117: =ROUND(RAND()*(2-1)+1,0) -> 2 | AQ117: =ROUND(RAND()*(4-2)+2,0) -> 3 | AR117: =ROUND(RAND()*(7-4)+4,0) -> 7 | AS117: =ROUND(RAND()*(9-7)+7,0) -> 8
C118: The answers are shown below. | AO118: 4 | AP118: =ROUND(RAND()*(2-1)+1,0) -> 2 | AQ118: =ROUND(RAND()*(4-2)+2,0) -> 3 | AR118: =ROUND(RAND()*(7-4)+4,0) -> 5 | AS118: =ROUND(RAND()*(8-7)+7,0) -> 7 | AT118: =ROUND(RAND()*(9-8)+8,0) -> 9
C120: =AQ120 -> 13 | E120: =AU120 -> 15 | G120: =AY120 -> 22 | I120: =BC120 -> 23 | K120: =AQ121 -> 32 | M120: =AO120 -> 11 | O120: =BE121 -> 47 | Q120: =AU121 -> 37 | S120: =AO121 -> 28 | AO120: =CONCATENATE($AO$115,AP115) -> 11 | AQ120: =CONCATENATE($AO$115,AQ115) -> 13 | AS120: =CONCATENATE($AO$115,AR115) -> 13 | AU120: =CONCATENATE($AO$115,AS115) -> 15 | AW120: =CONCATENATE($AO$115,AT115) -> 19 | AY120: =CONCATENATE(AO116,AP116) -> 22 | BA120: =CONCATENATE(AO116,AQ116) -> 23 | BC120: =CONCATENATE(AO116,AR116) -> 23 | BE120: =CONCATENATE(AO116,AS116) -> 24 | BG120: =CONCATENATE(AO116,AT116) -> 27
C121: =AY121 -> 42 | E121: =AS121 -> 33 | G121: =AS120 -> 13 | I121: =BC121 -> 45 | K121: =AW120 -> 19 | M121: =AW121 -> 38 | O121: =BA120 -> 23 | Q121: =BA121 -> 43 | S121: =BG120 -> 27 | AO121: =CONCATENATE(AO116,AU116) -> 28 | AQ121: =CONCATENATE(AO117,AP117) -> 32 | AS121: =CONCATENATE(AO117,AQ117) -> 33 | AU121: =CONCATENATE(AO117,AR117) -> 37 | AW121: =CONCATENATE(AO117,AS117) -> 38 | AY121: =CONCATENATE(AO118,AP118) -> 42 | BA121: =CONCATENATE(AO118,AQ118) -> 43 | BC121: =CONCATENATE(AO118,AR118) -> 45 | BE121: =CONCATENATE(AO118,AS118) -> 47 | BG121: =CONCATENATE(AO118,AT118) -> 49
C122: =BE120 -> 24 | E122: =BG121 -> 49
C124: Display these answers in an ordered stem and leaf diagram.
E126: Number of Songs
AC129: ( 3 marks )
C132: n = 19 | G132: Key | I132: =AO115 -> 1 | J132: =AP115 -> 1 | K132: means | M132: =AO120 -> 11 | AB132: Total marks 19

Sheet S4G_Homework 11
C3: Name :
C6: Teacher :
B9: General Official Homework 11 Created by Mr Lafferty St. Ninian's High School
D11: This homework covers topics | AC11: Score
D13: Basic Number Operations | T13: Algebraic Brackets | AF13: 20
D15: Speed Distance Time | T15: Money
D17: Fractions | T17: Pythagoras Theorem
D20: Teacher Comments :
D28: Pupil's Comment :
B36: 1. | C36: Carry out the following instructions. | O36: ( NON - CALCULATOR QUESTION )
B38: (a) | D38: =ROUND(RAND()*(950-730)+730,1) -> 823.2 | G38: - | H38: =ROUND(RAND()*(550-330)+330,1) -> 380.9 | L38: Working : | AJ38: =I40 -> 442.3
C40: Answer | I40: =D38-H38 -> 442.3
B42: (b) | D42: =ROUND(RAND()*(50-15)+15,1) -> 20.8 | G42: x | H42: =ROUND(RAND()*(9-3)+3,0)*10 -> 60 | L42: Working : | AJ42: =I44 -> 1248
C44: Answer | I44: =D42*H42 -> 1248
B46: (c) | D46: =ROUND(RAND()*(98-32)+32,1)*H46 -> 328.5 | G46: ÷ | H46: =ROUND(RAND()*(9-4)+4,0) -> 9 | L46: Working : | AJ46: =I48 -> 36.5
C48: Answer : | I48: =D46/H46 -> 36.5
B50: (d) | D50: =ROUND(RAND()*(9-2)+2,0)*10 -> 60 | F50: % of | H50: =ROUND(RAND()*(9-2)+2,1)*10 -> 31 | L50: Working : | AJ50: =I53 -> 18.6
C53: Answer : | I53: =H50*D50/100 -> 18.6 | AC53: ( 5 marks )
B56: 2. | C56: A Sprinter train travels at an average speed | Q56: =AJ58 -> 90 | S56: kilometres per hour. | AJ56: =ROUND(RAND()*(2-1)+1,0) -> 1
AJ57: =ROUND(RAND()*(9-1)+1,0)*6 -> 18
C58: The train takes | I58: =AJ56 -> 1 | J58: hours | L58: =AJ57 -> 18 | M58: minutes to travel between Dingwall and Aberdeen. | AJ58: =ROUND(RAND()*(15-6)+6,0)*10 -> 90
C60: Calculate the distance between Dingwall and Aberdeen.
N65: Answer | U65: Km | AC65: ( 2 marks ) | AJ65: =AJ58*(AJ56+AJ57/60) -> 117
C67: Working :
AK75: =ROUND(RAND()*(9-5)+5,0) -> 5
B76: 3. | C76: Calculate | AC76: ( 2 marks ) | AK76: =ROUND(RAND()*(4-2)+2,0) -> 4
AK77: =ROUND(RAND()*(9-2)+2,0) -> 4 | AL77: =ROUND(RAND()*(9-2)+2,0) -> 5
C78: =AK75 -> 5 | D78: x | E78: =AK76 -> 4 | F78: =AL77 -> 5 | O78: Working : | AL78: =AL77+1 -> 6
F79: =AL78 -> 6
AJ81: =AK75*(AL78*AK76+AL77)/AL78 -> 24.16666667
B84: 4. | C84: Simplify | P84: Working :
B86: =ROUND(RAND()*(9-2)+2,0) -> 7 | C86: ( | D86: =CHAR(RAND()*(122-97)+97) -> p | E86: + | F86: =ROUND(RAND()*(9-2)+2,0) -> 8 | G86: ) | H86: + | I86: =ROUND(RAND()*(9-2)+2,0) -> 4 | J86: ( | K86: =ROUND(RAND()*(9-2)+2,0) -> 4 | L86: - | M86: =ROUND(RAND()*(9-2)+2,0) -> 6 | N86: =D86 -> p | O86: )
C87: =ROUND(RAND()*(9-(1))+(1),0) -> 7
B88: Answer : | AK88: =B86+(I86*-M86) -> -17 | AL88: =N86 -> p | AM88: + | AN88: =F86*B86+I86*K86 -> 72
AC90: ( 3 marks )
B93: 5. | C93: The Duff family owns two dogs and a cat. | X93: Vet Rates | AN93: =ROUND(RAND()*(40-30)+30,1) -> 37.5 | AP93: =ROUND(RAND()*(1-0)+0,0) -> 0
X94: Dogs | AC94: =AN93 -> 37.5 | AN94: =ROUND(RAND()*(19-11)+11,1) -> 16.1
C95: Last year each dog had | K95: =AN95 -> 3 | L95: check-ups at Belmont Vets. | X95: Cat | AC95: =AN94 -> 16.1 | AN95: =ROUND(RAND()*(4-2)+2,0) -> 3
X96: Rabbits | AC96: =AN97 -> 21.4 | AN96: =ROUND(RAND()*(4-1)+1,0) -> 4
C97: The family cat also had check-ups last year. | AN97: =ROUND(RAND()*(29-20)+20,1) -> 21.4
C99: The Duff’s total check-up fees for the two dogs and the cat were | X99: =AN95*AN93+AN96*AN94 -> 176.9
C102: How often did the cat have a check-up? | X102: checkups | AN102: =AN96 -> 4
D105: Working :
AC113: ( 4 marks )
B116: 5. | C116: A rectangular metal grill for a window is shown below. | AO116: 1 | AP116: =ROUND(RAND()*(2-1)+1,0) -> 2 | AQ116: =ROUND(RAND()*(3-2)+2,0) -> 2 | AR116: =ROUND(RAND()*(4-3)+3,0) -> 3 | AS116: =ROUND(RAND()*(5-4)+4,0) -> 4 | AT116: =ROUND(RAND()*(9-5)+5,0) -> 6
C117: Two diagonal metal bars strengthen the grill. | V117: Working : | AN117: =ROUND(RAND()*(20-10)+10,0) -> 17 | AO117: 2 | AP117: =ROUND(RAND()*(2-1)+1,0) -> 1 | AQ117: =ROUND(RAND()*(3-2)+2,0) -> 3 | AR117: =ROUND(RAND()*(4-3)+3,0) -> 4 | AS117: =ROUND(RAND()*(5-4)+4,0) -> 4 | AT117: =ROUND(RAND()*(7-5)+5,0) -> 6 | AU117: =ROUND(RAND()*(9-7)+7,0) -> 9
AN118: =AN117-ROUND(RAND()*(6-3)+3,0) -> 12 | AO118: 3 | AP118: =ROUND(RAND()*(2-1)+1,0) -> 1 | AQ118: =ROUND(RAND()*(4-2)+2,0) -> 4 | AR118: =ROUND(RAND()*(7-4)+4,0) -> 5 | AS118: =ROUND(RAND()*(9-7)+7,0) -> 7
AO119: 4 | AP119: =ROUND(RAND()*(2-1)+1,0) -> 2 | AQ119: =ROUND(RAND()*(4-2)+2,0) -> 3 | AR119: =ROUND(RAND()*(7-4)+4,0) -> 6 | AS119: =ROUND(RAND()*(8-7)+7,0) -> 8 | AT119: =ROUND(RAND()*(9-8)+8,0) -> 9
B121: =AN118 -> 12 | D121: cm | AO121: =CONCATENATE($AO$116,AP116) -> 12 | AQ121: =CONCATENATE($AO$116,AQ116) -> 12 | AS121: =CONCATENATE($AO$116,AR116) -> 13 | AU121: =CONCATENATE($AO$116,AS116) -> 14 | AW121: =CONCATENATE($AO$116,AT116) -> 16 | AY121: =CONCATENATE(AO117,AP117) -> 21 | BA121: =CONCATENATE(AO117,AQ117) -> 23 | BC121: =CONCATENATE(AO117,AR117) -> 24 | BE121: =CONCATENATE(AO117,AS117) -> 24 | BG121: =CONCATENATE(AO117,AT117) -> 26
AO122: =CONCATENATE(AO117,AU117) -> 29 | AQ122: =CONCATENATE(AO118,AP118) -> 31 | AS122: =CONCATENATE(AO118,AQ118) -> 34 | AU122: =CONCATENATE(AO118,AR118) -> 35 | AW122: =CONCATENATE(AO118,AS118) -> 37 | AY122: =CONCATENATE(AO119,AP119) -> 42 | BA122: =CONCATENATE(AO119,AQ119) -> 43 | BC122: =CONCATENATE(AO119,AR119) -> 46 | BE122: =CONCATENATE(AO119,AS119) -> 48 | BG122: =CONCATENATE(AO119,AT119) -> 49
K126: =AN117 -> 17 | M126: cm
C128: Find the length of one of the metal bars.
C129: Round your answer to the nearest centimetre.
AC130: ( 4 marks )
R131: cm | AN131: =ROUND(SQRT((K126*K126)+(B121*B121)),0) -> 21
AB133: Total marks 20

Sheet S4G_Homework 12
C3: Name :
C6: Teacher :
B9: General Official Homework 12 Created by Mr Lafferty St. Ninian's High School
D11: This homework covers topics | AC11: Score
D13: Basic Number Operations | T13: Algebraic Equations | AF13: 22
D15: Money & Percentages | T15: Perimeter & Area
D17: Money | T17: Trigonometry
D20: Teacher Comments :
D28: Pupil's Comment :
B36: 1. | C36: Carry out the following instructions. | O36: ( NON - CALCULATOR QUESTION )
B38: (a) | D38: =ROUND(RAND()*(950-730)+730,1) -> 748 | G38: - | H38: =ROUND(RAND()*(550-330)+330,1) -> 486.1 | L38: Working : | AJ38: =I40 -> 261.9
C40: Answer | I40: =D38-H38 -> 261.9
B42: (b) | D42: =ROUND(RAND()*(50-15)+15,1) -> 46.6 | G42: x | H42: =ROUND(RAND()*(9-3)+3,0)*10 -> 50 | L42: Working : | AJ42: =I44 -> 2330
C44: Answer | I44: =D42*H42 -> 2330
B46: (c) | D46: =ROUND(RAND()*(98-32)+32,1)*H46 -> 581.4 | G46: ÷ | H46: =ROUND(RAND()*(9-4)+4,0) -> 6 | L46: Working : | AJ46: =I48 -> 96.9
C48: Answer : | I48: =D46/H46 -> 96.9
B50: (d) | D50: =ROUND(RAND()*(9-2)+2,0) -> 2 | E50: x | F50: =ROUND(RAND()*(8-2)+2,0) -> 5 | L50: Working : | AJ50: =D50*F50/F51 -> 1.666666667
F51: =F50+1 -> 6
C53: Answer : | AC53: ( 5 marks )
B56: 2. | C56: Maura invests | H56: =AJ62 -> 3200 | K56: in the Platinum Saver Account which pays | X56: =AL60 -> 3.6% | Z56: interest per annum.
C58: How much simple interest will she receive after | R58: =AJ61 -> 9 | T58: months? | Y58: Platinum Saver Account
Y59: Interest Rate
C60: Round your answer to the nearest pence. | Y60: =AL60 -> 3.6% | AJ60: =ROUND(RAND()*(8-3)+3,1) -> 3.6 | AK60: % | AL60: =CONCATENATE(AJ60,AK60) -> 3.6%
AJ61: =ROUND(RAND()*(11-7)+7,0) -> 9
AJ62: =ROUND(RAND()*(987-165)+165,0)*10 -> 3200
AJ63: =ROUND(AJ62*AJ60/100/12*AJ61,2) -> 86.4
N65: Answer | AC65: ( 3 marks )
C67: Working :
B76: 3. | C76: Mr Lafferty is a bricklayer. He builds a wall using | R76: =AJ76 -> 9000 | U76: bricks: | AC76: ( 3 marks ) | AJ76: =ROUND(RAND()*(19-10)+10,0)*500 -> 9000
C77: • a charge of | H77: =AJ77 -> 130 | J77: is made for every 500 bricks he lays. | AJ77: =ROUND(RAND()*(20-13)+13,0)*10 -> 130
C78: • each brick costs | I78: =AJ78 -> 16 | J78: pence | O78: Working : | AJ78: =ROUND(RAND()*(30-15)+15,0) -> 16
B80: What is the total cost of building the wall?
B81: Answer : | AJ81: =AJ76/500*AJ77+AJ76*AJ78/100 -> 3780
B83: 4. | C83: Solve algebraically the equation. | O83: Working :
C85: =ROUND(RAND()*(9-5)+5,0) -> 9 | D85: =CHAR(RAND()*(122-97)+97) -> r | E85: - | F85: =ROUND(RAND()*(5-2)+2,0) -> 4 | G85: = | H85: =ROUND(RAND()*(4-2)+2,0) -> 4 | I85: =D85 -> r | J85: + | K85: =(C85*H87-F85)-H85*H87 -> 31
C86: =ROUND(RAND()*(9-(1))+(1),0) -> 8
B87: Answer : | H87: =ROUND(RAND()*(9-2)+(2),0) -> 7 | AN87: =H87 -> 7
AC89: ( 3 marks )
B92: 5. | C92: A supermarket has a canopy over its entrance. | AP92: =ROUND(RAND()*(1-0)+0,0) -> 0
C94: The edge of the canopy has 6 semicircles as shown below.
C96: Each semicircle has a diameter of | M96: =AN96 -> 8 | N96: metres. | AN96: =ROUND(RAND()*(9-2)+2,0) -> 8
C100: Find the length of the curved edge of canopy
C101: Round answer to 1 decimal place. | X101: metres | AN101: =ROUND(3*PI()*AN96,1) -> 75.4
D104: Working :
AC112: ( 4 marks )
P114: E
B115: 6. | C115: DEFG is a kite:
R116: =AN116 -> 19 | T116: cm | V116: Working : | AN116: =ROUND(RAND()*(30-10)+10,0) -> 19
C117: • angle DEG = | H117: =AN117 -> 66 | J117: o | AN117: =ROUND(RAND()*(70-50)+50,0) -> 66 | AO117: o
C118: • EF = | F118: =AN116 -> 19 | G118: centimetres. | L118: D | M118: =AN117 -> 66 | O118: o | U118: F
Q126: G
C127: Calculate the length of DF to 1 decimal place. | AA127: cm | AN127: =ROUND(2*(AN116*COS(AN117*PI()/180)),1) -> 15.5
AC128: ( 4 marks )
AB130: Total marks 22
